fUSD/lending_fUSD_20250422
["ID","MTS","AMOUNT","RATE_DAILY","PERIOD"]
[358615481,1745312014624,-150.0,0.00056158,120]
[358615482,1745312014658,-150.0,0.00056162,120]
[358615483,1745312014695,-151.0,0.00056164,120]
[358615484,1745312014731,-500.0,0.00056164,120]
[358615485,1745312014767,-500.0,0.00056164,120]
[358615486,1745312014802,-159.945697,0.00056164,120]
[358615487,1745312014836,-239.857043,0.00056164,120]
[358615488,1745312014870,-530.36,0.00056164,120]
[358615489,1745312014905,-151.0,0.00056164,120]
[358615490,1745312014943,-151.0,0.00056164,120]
[358615491,1745312014983,-191.99418,0.00056164,120]
[358615492,1745312015022,-500.0,0.00056164,120]
[358615493,1745312015061,-500.0,0.00056164,120]
[358615494,1745312015100,-636.42930579,0.00056164,120]
[358615495,1745312015135,-500.0,0.00056164,120]
[358615496,1745312015171,-500.0,0.00056164,120]
[358615497,1745312015367,-500.0,0.00056164,120]
[358615498,1745312015404,-500.0,0.00056164,120]
[358615499,1745312015441,-500.0,0.00056164,120]
[358615500,1745312015475,-500.0,0.00056164,120]
[358615501,1745312015510,-500.0,0.00056164,120]
[358615502,1745312015546,-500.0,0.00056164,120]
[358615503,1745312015581,-500.0,0.00056164,120]
[358615504,1745312015617,-500.0,0.00056164,120]
[358615505,1745312015655,-500.0,0.00056164,120]
[358615506,1745312015691,-500.0,0.00056164,120]
[358615507,1745312015727,-503.12,0.00056164,120]
[358615508,1745312015763,-421.44899665,0.00056164,120]
[358615509,1745312015800,-500.0,0.00056164,120]
[358615510,1745312015834,-500.0,0.00056164,120]
[358615511,1745312015868,-500.0,0.00056164,120]
[358615512,1745312015902,-234.21688946,0.00056164,120]
[358615513,1745312015937,-500.0,0.00056164,120]
[358615514,1745312015972,-500.0,0.00056164,120]
[358615515,1745312016005,-600.96559393,0.00056164,120]
[358615516,1745312016039,-500.0,0.00056164,120]
[358615517,1745312016072,-500.0,0.00056164,120]
[358615518,1745312016106,-500.0,0.00056164,120]
[358615519,1745312016141,-500.0,0.00056164,30]
[358615520,1745312016175,-500.0,0.00056164,120]
[358615521,1745312016210,-500.0,0.00056164,120]
[358615522,1745312016244,-500.0,0.00056164,120]
[358615523,1745312016278,-500.0,0.00056164,120]
[358615524,1745312016310,-500.0,0.00056164,120]
[358615525,1745312016344,-500.0,0.00056164,120]
[358615526,1745312016378,-500.0,0.00056164,120]
[358615527,1745312016414,-500.0,0.00056164,120]
[358615528,1745312016450,-500.0,0.00056164,120]
[358615529,1745312016486,-500.0,0.00056164,120]
[358615530,1745312016522,-500.0,0.00056164,120]
[358615531,1745312016556,-500.0,0.00056164,120]
[358615532,1745312016589,-500.0,0.00056164,120]
[358615533,1745312016622,-500.0,0.00056164,120]
[358615534,1745312016656,-500.0,0.00056164,120]
[358615535,1745312016690,-500.0,0.00056164,120]
[358615536,1745312016724,-500.0,0.00056164,120]
[358615537,1745312016758,-500.0,0.00056164,120]
[358615538,1745312016796,-528.49,0.00056164,120]
[358615539,1745312016830,-3562.71,0.00056164,120]
[358615540,1745312016864,-500.0,0.00056164,120]
[358615541,1745312016899,-500.0,0.00056164,120]
[358615542,1745312016935,-500.0,0.00056164,120]
[358615543,1745312016972,-500.0,0.00056164,120]
[358615544,1745312017011,-1000.0,0.00056164,120]
[358615545,1745312017050,-336.58177068,0.00056164,120]
[358615546,1745312017087,-500.0,0.00056164,120]
[358615547,1745312017125,-500.0,0.00056164,120]
[358615548,1745312017160,-855.36,0.00056164,120]
[358615549,1745312017196,-500.0,0.00056164,120]
[358615550,1745312017230,-500.0,0.00056164,120]
[358615551,1745312017264,-336.12879886,0.00056164,118]
[358615552,1745312017298,-500.0,0.00056164,120]
[358615553,1745312017333,-500.0,0.00056164,120]
[358615554,1745312017369,-500.0,0.00056164,120]
[358615555,1745312017403,-500.0,0.00056164,120]
[358615556,1745312017439,-500.0,0.00056164,120]
[358615557,1745312017474,-500.0,0.00056164,120]
[358615558,1745312017510,-500.0,0.00056164,120]
[358615559,1745312017545,-988.96,0.00056164,120]
[358615560,1745312017579,-500.0,0.00056164,120]
[358615561,1745312017612,-500.0,0.00056164,120]
[358615562,1745312017646,-500.0,0.00056164,120]
[358615563,1745312017680,-500.0,0.00056164,120]
[358615564,1745312017718,-500.0,0.00056164,120]
[358615565,1745312017755,-500.0,0.00056164,120]
[358615566,1745312017790,-500.0,0.00056164,120]
[358615567,1745312017831,-524.35,0.00056164,120]
[358615568,1745312017868,-500.0,0.00056164,120]
[358615569,1745312017907,-500.0,0.00056164,120]
[358615570,1745312017944,-500.0,0.00056164,120]
[358615571,1745312017981,-500.0,0.00056164,120]
[358615572,1745312018019,-500.0,0.00056164,120]
[358615573,1745312018057,-500.0,0.00056164,120]
[358615574,1745312018095,-500.0,0.00056164,120]
[358615575,1745312018131,-795.78,0.00056164,120]
[358615576,1745312018169,-500.0,0.00056164,120]
[358615577,1745312018204,-500.0,0.00056164,120]
[358615578,1745312018239,-500.0,0.00056164,120]
[358615579,1745312018272,-500.0,0.00056164,120]
[358615580,1745312018305,-500.0,0.00056164,120]
[358615581,1745312018339,-470.26050358,0.00056164,120]
[358615582,1745312018372,-904.36,0.00056164,120]
[358615583,1745312018408,-1191.65,0.00056164,120]
[358615584,1745312018444,-500.0,0.00056164,120]
[358615585,1745312018480,-605.29,0.00056164,120]
[358615586,1745312018514,-500.0,0.00056164,120]
[358615587,1745312018546,-999.0,0.00056164,120]
[358615588,1745312018577,-500.0,0.00056164,120]
[358615589,1745312018609,-500.0,0.00056164,120]
[358615590,1745312018642,-500.0,0.00056164,120]
[358615591,1745312018823,-500.0,0.00056164,120]
[358615592,1745312018867,-500.0,0.00056164,60]
[358615593,1745312018904,-523.03,0.00056164,120]
[358615594,1745312018941,-500.0,0.00056164,120]
[358615595,1745312018975,-500.0,0.00056164,120]
[358615596,1745312019010,-500.0,0.00056164,120]
[358615597,1745312019046,-500.0,0.00056164,120]
[358615598,1745312019081,-500.0,0.00056164,120]
[358615599,1745312019116,-500.0,0.00056164,120]
[358615600,1745312019149,-500.0,0.00056164,120]
[358615601,1745312019184,-500.0,0.00056164,120]
[358615602,1745312019217,-500.0,0.00056164,120]
[358615603,1745312019250,-500.0,0.00056164,56]
[358615604,1745312019282,-500.0,0.00056164,120]
[358615605,1745312019314,-83185.02,0.00056164,120]
[358615606,1745312019347,-500.0,0.00056164,120]
[358615607,1745312019380,-500.0,0.00056164,120]
[358615608,1745312019415,-500.0,0.00056164,120]
[358615609,1745312019452,-2100.0,0.00056185,120]
[358615610,1745312019488,-273.21047026,0.00056186,120]
[358615611,1745312019523,-500.0,0.00056187,120]
[358615612,1745312019556,-150.0,0.00056204,120]
[358615613,1745312019589,-150.0,0.00056204,120]
[358615614,1745312019622,-200.0,0.00056205,120]
[358615615,1745312019656,-150.0,0.00056208,120]
[358615616,1745312019690,-273.21047026,0.00056219,120]
[358615617,1745312019724,-150.0,0.00056226,120]
[358615618,1745312019756,-150.0,0.00056231,120]
[358615619,1745312019789,-151.0,0.00056236,120]
[358615620,1745312019825,-151.0,0.00056236,120]
[358615621,1745312019859,-151.0,0.00056236,120]
[358615622,1745312019893,-150.0,0.00056247,120]
[358615623,1745312019928,-273.21047026,0.00056251,120]
[358615624,1745312019961,-600.0,0.00056258,120]
[358615625,1745312019995,-150.0,0.00056269,120]
[358615626,1745312020030,-273.21047026,0.00056283,120]
[358615627,1745312020064,-150.0,0.0005629,120]
[358615628,1745312020100,-150.0,0.00056294,120]
[358615629,1745312020137,-150.0,0.00056303,120]
[358615630,1745312020172,-273.21047026,0.00056316,120]
[358615631,1745312020207,-150.0,0.00056333,120]
[358615632,1745312020240,-150.0,0.00056333,120]
[358615633,1745312020285,-150.0,0.00056342,120]
[358615634,1745312020320,-273.21047026,0.00056348,120]
[358615635,1745312020354,-150.0,0.0005635,120]
[358615636,1745312020390,-151.0,0.00056358,120]
[358615637,1745312020424,-151.0,0.00056358,120]
[358615638,1745312020459,-150.0,0.00056363,120]
[358615639,1745312020493,-150.0,0.00056375,120]
[358615640,1745312020528,-273.21047026,0.00056381,120]
[358615641,1745312020563,-150.0,0.00056397,120]
[358615642,1745312020598,-150.0,0.00056397,120]
[358615643,1745312020631,-150.0,0.00056397,120]
[358615644,1745312020664,-150.0,0.00056397,120]
[358615645,1745312020697,-273.21047026,0.00056413,120]
[358615646,1745312020730,-150.0,0.00056418,120]
[358615647,1745312020766,-150.0,0.00056431,120]
[358615648,1745312020802,-151.0,0.00056438,120]
[358615649,1745312020836,-151.0,0.00056438,120]
[358615650,1745312020872,-500.0,0.00056438,120]
[358615651,1745312020906,-500.0,0.00056438,120]
[358615652,1745312020946,-530.36,0.00056438,120]
[358615653,1745312020980,-392.32,0.00056438,120]
[358615654,1745312021015,-500.0,0.00056438,120]
[358615655,1745312021050,-500.0,0.00056438,120]
[358615656,1745312021084,-500.0,0.00056438,120]
[358615657,1745312021119,-151.0,0.00056438,120]
[358615658,1745312021155,-500.0,0.00056438,120]
[358615659,1745312021191,-225.01022083,0.00056438,120]
[358615660,1745312021226,-500.0,0.00056438,120]
[358615661,1745312021261,-500.0,0.00056438,120]
[358615662,1745312021294,-500.0,0.00056438,120]
[358615663,1745312021327,-500.0,0.00056438,120]
[358615664,1745312021360,-500.0,0.00056438,120]
[358615665,1745312021395,-500.0,0.00056438,120]
[358615666,1745312021428,-181.14377,0.00056438,120]
[358615667,1745312021460,-500.0,0.00056438,120]
[358615668,1745312021495,-500.0,0.00056438,120]
[358615669,1745312021532,-503.12,0.00056438,120]
[358615670,1745312021573,-151.0,0.00056438,60]
[358615671,1745312021607,-632.98789676,0.00056438,120]
[358615672,1745312021642,-151.0,0.00056438,60]
[358615673,1745312021676,-500.0,0.00056438,120]
[358615674,1745312021709,-500.0,0.00056438,120]
[358615675,1745312021741,-500.0,0.00056438,120]
[358615676,1745312021775,-500.0,0.00056438,120]
[358615677,1745312021810,-300.439079,0.00056438,120]
[358615678,1745312021842,-500.0,0.00056438,120]
[358615679,1745312021877,-500.0,0.00056438,120]
[358615680,1745312021911,-500.0,0.00056438,120]
[358615681,1745312021946,-500.0,0.00056438,30]
[358615682,1745312021982,-500.0,0.00056438,120]
[358615683,1745312022016,-500.0,0.00056438,120]
[358615684,1745312022050,-500.0,0.00056438,120]
[358615685,1745312022085,-500.0,0.00056438,120]
[358615686,1745312022311,-500.0,0.00056438,120]
[358615687,1745312022347,-226.31317283,0.00056438,120]
[358615688,1745312022382,-256.30833851,0.00056438,120]
[358615689,1745312022417,-500.0,0.00056438,120]
[358615690,1745312022453,-500.0,0.00056438,120]
[358615691,1745312022490,-500.0,0.00056438,120]
[358615692,1745312022523,-500.0,0.00056438,120]
[358615693,1745312022559,-500.49852347,0.00056438,120]
[358615694,1745312022593,-151.0,0.00056438,120]
[358615695,1745312022626,-500.0,0.00056438,120]
[358615696,1745312022659,-528.49,0.00056438,120]
[358615697,1745312022693,-3562.71,0.00056438,120]
[358615698,1745312022727,-151.0,0.00056438,120]
[358615699,1745312022777,-500.0,0.00056438,120]
[358615700,1745312022820,-500.0,0.00056438,120]
[358615701,1745312022858,-500.0,0.00056438,120]
[358615702,1745312022899,-500.0,0.00056438,120]
[358615703,1745312022936,-1061.41506816,0.00056438,120]
[358615704,1745312022973,-500.0,0.00056438,120]
[358615705,1745312023011,-500.0,0.00056438,120]
[358615706,1745312023048,-855.36,0.00056438,120]
[358615707,1745312023086,-500.0,0.00056438,120]
[358615708,1745312023122,-500.0,0.00056438,120]
[358615709,1745312023156,-500.0,0.00056438,120]
[358615710,1745312023194,-500.0,0.00056438,120]
[358615711,1745312023232,-500.0,0.00056438,120]
[358615712,1745312023267,-500.0,0.00056438,120]
[358615713,1745312023304,-500.0,0.00056438,120]
[358615714,1745312023339,-500.0,0.00056438,120]
[358615715,1745312023375,-500.0,0.00056438,120]
[358615716,1745312023410,-988.96,0.00056438,120]
[358615717,1745312023445,-500.0,0.00056438,120]
[358615718,1745312023483,-500.0,0.00056438,120]
[358615719,1745312023519,-500.0,0.00056438,120]
[358615720,1745312023555,-500.0,0.00056438,120]
[358615721,1745312023593,-500.0,0.00056438,120]
[358615722,1745312023628,-500.0,0.00056438,120]
[358615723,1745312023664,-308.89255984,0.00056438,120]
[358615724,1745312023699,-524.35,0.00056438,120]
[358615725,1745312023735,-539.64872222,0.00056438,120]
[358615726,1745312023771,-500.0,0.00056438,120]
[358615727,1745312023807,-500.0,0.00056438,120]
[358615728,1745312023843,-500.0,0.00056438,120]
[358615729,1745312023879,-500.0,0.00056438,120]
[358615730,1745312023917,-500.0,0.00056438,120]
[358615731,1745312023954,-223.30112054,0.00056438,120]
[358615732,1745312023991,-795.78,0.00056438,120]
[358615733,1745312024029,-500.0,0.00056438,120]
[358615734,1745312024066,-500.0,0.00056438,120]
[358615735,1745312024101,-500.0,0.00056438,120]
[358615736,1745312024136,-500.0,0.00056438,120]
[358615737,1745312024172,-500.0,0.00056438,120]
[358615738,1745312024208,-904.36,0.00056438,120]
[358615739,1745312024244,-1191.65,0.00056438,120]
[358615740,1745312024279,-500.0,0.00056438,120]
[358615741,1745312024311,-605.29,0.00056438,120]
[358615742,1745312024344,-500.0,0.00056438,120]
[358615743,1745312024378,-999.0,0.00056438,120]
[358615744,1745312024412,-500.0,0.00056438,120]
[358615745,1745312024448,-500.0,0.00056438,120]
[358615746,1745312024483,-500.0,0.00056438,120]
[358615747,1745312024517,-500.0,0.00056438,120]
[358615748,1745312024551,-500.0,0.00056438,60]
[358615749,1745312024585,-523.03,0.00056438,120]
[358615750,1745312024621,-378.78045331,0.00056438,120]
[358615751,1745312024658,-500.0,0.00056438,120]
[358615752,1745312024692,-500.0,0.00056438,120]
[358615753,1745312024726,-500.0,0.00056438,120]
[358615754,1745312024763,-500.0,0.00056438,120]
[358615755,1745312024799,-151.0,0.00056438,120]
[358615756,1745312024834,-452.5501122,0.00056438,120]
[358615757,1745312024872,-500.0,0.00056438,120]
[358615758,1745312024911,-500.0,0.00056438,120]
[358615759,1745312024949,-448.36265354,0.00056438,120]
[358615760,1745312024988,-500.0,0.00056438,56]
[358615761,1745312025026,-500.0,0.00056438,120]
[358615762,1745312025063,-2367.21,0.00056438,120]
[358615763,1745312025099,-83185.02,0.00056438,120]
[358615764,1745312025135,-500.0,0.00056438,120]
[358615765,1745312025170,-500.0,0.00056438,120]
[358615766,1745312025205,-500.0,0.00056438,120]
[358615767,1745312025239,-151.0,0.00056438,120]
[358615768,1745312025273,-273.21047026,0.00056445,120]
[358615769,1745312025306,-150.0,0.00056452,120]
[358615770,1745312025340,-150.0,0.00056461,120]
[358615771,1745312025374,-150.0,0.00056461,120]
[358615772,1745312025412,-273.21047026,0.00056478,120]
[358615773,1745312025450,-150.0,0.00056491,120]
[358615774,1745312025486,-150.0,0.00056493,120]
[358615775,1745312025520,-150.0,0.00056499,120]
[358615776,1745312025558,-150.0,0.00056504,120]
[358615777,1745312025592,-273.21047026,0.0005651,120]
[358615778,1745312025627,-600.0,0.00056513,120]
[358615779,1745312025663,-150.0,0.00056525,120]
[358615780,1745312025700,-273.21047026,0.00056542,120]
[358615781,1745312025880,-150.0,0.00056546,120]
[358615782,1745312025935,-150.0,0.00056563,120]
[358615783,1745312025974,-150.0,0.00056567,120]
[358615784,1745312026010,-273.21047026,0.00056575,120]
[358615785,1745312026043,-150.0,0.00056585,120]
[358615786,1745312026078,-150.0,0.00056589,120]
[358615787,1745312026111,-150.0,0.00056589,120]
[358615788,1745312026145,-273.21047026,0.00056607,120]
[358615789,1745312026181,-500.0,0.00056623,120]
[358615790,1745312026215,-150.0,0.00056632,120]
[358615791,1745312026248,-150.0,0.00056635,120]
[358615792,1745312026282,-273.21047026,0.0005664,120]
[358615793,1745312026317,-216.0,0.0005665,30]
[358615794,1745312026350,-211.0,0.0005665,30]
[358615795,1745312026384,-209.0,0.0005665,30]
[358615796,1745312026420,-150.0,0.00056653,120]
[358615797,1745312026456,-273.21047026,0.00056672,120]
[358615798,1745312026490,-150.0,0.00056673,120]
[358615799,1745312026526,-150.0,0.00056674,120]
[358615800,1745312026561,-150.0,0.0005668,120]
[358615801,1745312026599,-150.0,0.00056704,120]
[358615802,1745312026634,-273.21047026,0.00056704,120]
[358615803,1745312026668,-500.0,0.00056712,120]
[358615804,1745312026702,-500.0,0.00056712,120]
[358615805,1745312026736,-530.36,0.00056712,120]
[358615806,1745312026770,-500.0,0.00056712,120]
[358615807,1745312026807,-500.0,0.00056712,120]
[358615808,1745312026843,-500.0,0.00056712,120]
[358615809,1745312026877,-500.0,0.00056712,120]
[358615810,1745312026911,-500.0,0.00056712,120]
[358615811,1745312026943,-500.0,0.00056712,120]
[358615812,1745312026978,-500.0,0.00056712,120]
[358615813,1745312027012,-500.0,0.00056712,120]
[358615814,1745312027048,-500.0,0.00056712,120]
[358615815,1745312027082,-500.0,0.00056712,120]
[358615816,1745312027115,-500.0,0.00056712,120]
[358615817,1745312027148,-500.0,0.00056712,120]
[358615818,1745312027181,-503.12,0.00056712,120]
[358615819,1745312027218,-500.0,0.00056712,120]
[358615820,1745312027252,-500.0,0.00056712,120]
[358615821,1745312027287,-500.0,0.00056712,120]
[358615822,1745312027320,-500.0,0.00056712,120]
[358615823,1745312027356,-500.0,0.00056712,120]
[358615824,1745312027391,-500.0,0.00056712,120]
[358615825,1745312027427,-500.0,0.00056712,120]
[358615826,1745312027464,-456.18914432,0.00056712,30]
[358615827,1745312027501,-500.0,0.00056712,120]
[358615828,1745312027541,-500.0,0.00056712,120]
[358615829,1745312027578,-500.0,0.00056712,120]
[358615830,1745312027616,-500.0,0.00056712,120]
[358615831,1745312027654,-500.0,0.00056712,120]
[358615832,1745312027692,-500.0,0.00056712,120]
[358615833,1745312027732,-500.0,0.00056712,120]
[358615834,1745312027772,-500.0,0.00056712,120]
[358615835,1745312027811,-499.91995013,0.00056712,120]
[358615836,1745312027851,-500.0,0.00056712,120]
[358615837,1745312027891,-528.49,0.00056712,120]
[358615838,1745312027929,-3562.71,0.00056712,120]
[358615839,1745312027968,-500.0,0.00056712,120]
[358615840,1745312028011,-500.0,0.00056712,120]
[358615841,1745312028051,-500.0,0.00056712,120]
[358615842,1745312028093,-500.0,0.00056712,120]
[358615843,1745312028132,-500.0,0.00056712,120]
[358615844,1745312028172,-500.0,0.00056712,120]
[358615845,1745312028211,-855.36,0.00056712,120]
[358615846,1745312028250,-500.0,0.00056712,120]
[358615847,1745312028286,-242.70418052,0.00056712,120]
[358615848,1745312028321,-230.61141125,0.00056712,120]
[358615849,1745312028357,-500.0,0.00056712,120]
[358615850,1745312028392,-500.0,0.00056712,120]
[358615851,1745312028428,-500.0,0.00056712,120]
[358615852,1745312028466,-500.0,0.00056712,120]
[358615853,1745312028500,-500.0,0.00056712,120]
[358615854,1745312028537,-500.0,0.00056712,120]
[358615855,1745312028572,-988.96,0.00056712,120]
[358615856,1745312028608,-500.0,0.00056712,120]
[358615857,1745312028643,-500.0,0.00056712,120]
[358615858,1745312028677,-500.0,0.00056712,120]
[358615859,1745312028711,-500.0,0.00056712,120]
[358615860,1745312028744,-500.0,0.00056712,120]
[358615861,1745312028779,-524.35,0.00056712,120]
[358615862,1745312028814,-500.0,0.00056712,120]
[358615863,1745312028848,-546.13948837,0.00056712,120]
[358615864,1745312028884,-266.7623044,0.00056712,120]
[358615865,1745312028920,-500.0,0.00056712,120]
[358615866,1745312028956,-500.0,0.00056712,120]
[358615867,1745312028992,-795.78,0.00056712,120]
[358615868,1745312029027,-500.0,0.00056712,120]
[358615869,1745312029062,-500.0,0.00056712,120]
[358615870,1745312029098,-500.0,0.00056712,120]
[358615871,1745312029133,-500.0,0.00056712,120]
[358615872,1745312029167,-500.0,0.00056712,120]
[358615873,1745312029204,-904.36,0.00056712,120]
[358615874,1745312029240,-1191.65,0.00056712,120]
[358615875,1745312029274,-378.23961003,0.00056712,120]
[358615876,1745312029447,-605.29,0.00056712,120]
[358615877,1745312029488,-500.0,0.00056712,120]
[358615878,1745312029526,-999.0,0.00056712,120]
[358615879,1745312029567,-500.0,0.00056712,120]
[358615880,1745312029607,-500.0,0.00056712,120]
[358615881,1745312029643,-500.0,0.00056712,120]
[358615882,1745312029678,-500.0,0.00056712,120]
[358615883,1745312029713,-500.0,0.00056712,60]
[358615884,1745312029749,-523.03,0.00056712,120]
[358615885,1745312029785,-500.0,0.00056712,120]
[358615886,1745312029823,-500.0,0.00056712,120]
[358615887,1745312029860,-500.0,0.00056712,120]
[358615888,1745312029898,-500.0,0.00056712,120]
[358615889,1745312029935,-500.0,0.00056712,120]
[358615890,1745312029971,-500.0,0.00056712,120]
[358615891,1745312030007,-500.0,0.00056712,56]
[358615892,1745312030044,-500.0,0.00056712,120]
[358615893,1745312030080,-83185.02,0.00056712,120]
[358615894,1745312030116,-191.27513778,0.00056712,120]
[358615895,1745312030153,-500.0,0.00056712,120]
[358615896,1745312030189,-500.0,0.00056712,120]
[358615897,1745312030225,-150.0,0.00056717,120]
[358615898,1745312030261,-150.0,0.00056717,120]
[358615899,1745312030295,-273.21047026,0.00056737,120]
[358615900,1745312030330,-150.0,0.0005676,120]
[358615901,1745312030363,-273.21047026,0.00056769,120]
[358615902,1745312030398,-150.0,0.00056772,120]
[358615903,1745312030433,-150.0,0.00056774,120]
[358615904,1745312030469,-150.0,0.00056781,120]
[358615905,1745312030504,-150.0,0.00056784,120]
[358615906,1745312030536,-273.21047026,0.00056801,120]
[358615907,1745312030571,-150.0,0.00056803,120]
[358615908,1745312030604,-273.21047026,0.00056834,120]
[358615909,1745312030637,-150.0,0.0005684,120]
[358615910,1745312030670,-150.0,0.00056845,120]
[358615911,1745312030703,-150.0,0.00056845,120]
[358615912,1745312030736,-600.0,0.00056851,120]
[358615913,1745312030770,-273.21047026,0.00056866,120]
[358615914,1745312030806,-150.0,0.00056868,120]
[358615915,1745312030839,-150.0,0.00056888,120]
[358615916,1745312030871,-150.0,0.00056894,120]
[358615917,1745312030906,-273.21047026,0.00056898,120]
[358615918,1745312030940,-150.0,0.00056908,120]
[358615919,1745312030975,-150.0,0.00056909,120]
[358615920,1745312031011,-150.0,0.00056931,120]
[358615921,1745312031045,-273.21047026,0.00056931,120]
[358615922,1745312031079,-150.0,0.00056931,120]
[358615923,1745312031114,-150.0,0.00056962,120]
[358615924,1745312031149,-273.21047026,0.00056963,120]
[358615925,1745312031183,-150.0,0.00056974,120]
[358615926,1745312031218,-150.0,0.00056974,120]
[358615927,1745312031251,-150.0,0.00056976,120]
[358615928,1745312031283,-683018.3950086,0.0005698,30]
[358615929,1745312031316,-214.122638,0.0005698,120]
[358615930,1745312031348,-214.122638,0.0005698,120]
[358615931,1745312031382,-222.703088,0.0005698,120]
[358615932,1745312031415,-151.0,0.0005698,120]
[358615933,1745312031448,-158.533311,0.0005698,120]
[358615934,1745312031482,-158.533311,0.0005698,120]
[358615935,1745312031517,-268.204868,0.0005698,120]
[358615936,1745312031551,-151.0,0.0005698,120]
[358615937,1745312031585,-290.341285,0.0005698,120]
[358615938,1745312031620,-151.0,0.0005698,120]
[358615939,1745312031653,-151.0,0.0005698,120]
[358615940,1745312031686,-151.0,0.0005698,120]
[358615941,1745312031718,-151.0,0.0005698,120]
[358615942,1745312031752,-154.412998,0.0005698,120]
[358615943,1745312031787,-154.412998,0.0005698,120]
[358615944,1745312031823,-525.782871,0.0005698,120]
[358615945,1745312031857,-525.782871,0.0005698,120]
[358615946,1745312031893,-151.0,0.0005698,120]
[358615947,1745312031929,-495.873294,0.0005698,120]
[358615948,1745312031965,-495.873294,0.0005698,120]
[358615949,1745312032001,-2637.987686,0.0005698,120]
[358615950,1745312032037,-2637.987686,0.0005698,120]
[358615951,1745312032073,-611.122299,0.0005698,120]
[358615952,1745312032115,-611.122299,0.0005698,120]
[358615953,1745312032149,-151.0,0.0005698,120]
[358615954,1745312032184,-151.0,0.0005698,120]
[358615955,1745312032218,-151.0,0.0005698,120]
[358615956,1745312032250,-281.979069,0.00056986,120]
[358615957,1745312032283,-500.0,0.00056986,120]
[358615958,1745312032316,-500.0,0.00056986,120]
[358615959,1745312032350,-151.0,0.00056986,120]
[358615960,1745312032384,-151.0,0.00056986,120]
[358615961,1745312032418,-530.36,0.00056986,120]
[358615962,1745312032451,-500.0,0.00056986,120]
[358615963,1745312032486,-535.26063891,0.00056986,120]
[358615964,1745312032520,-500.0,0.00056986,120]
[358615965,1745312032554,-151.0,0.00056986,120]
[358615966,1745312032587,-151.0,0.00056986,120]
[358615967,1745312032619,-500.0,0.00056986,120]
[358615968,1745312032652,-500.0,0.00056986,120]
[358615969,1745312032685,-500.0,0.00056986,120]
[358615970,1745312032719,-500.0,0.00056986,120]
[358615971,1745312032938,-151.0,0.00056986,120]
[358615972,1745312032979,-2536.313009,0.00056986,120]
[358615973,1745312033018,-500.0,0.00056986,120]
[358615974,1745312033059,-500.0,0.00056986,120]
[358615975,1745312033098,-500.0,0.00056986,120]
[358615976,1745312033135,-500.0,0.00056986,120]
[358615977,1745312033171,-500.0,0.00056986,120]
[358615978,1745312033207,-503.12,0.00056986,120]
[358615979,1745312033241,-151.0,0.00056986,60]
[358615980,1745312033275,-151.0,0.00056986,60]